fUST/lending_fUST_20251120
["ID","MTS","AMOUNT","RATE_DAILY","PERIOD"]
[394452868,1763589033233,-2302.1255231,0.0001513,2]
[394452869,1763589033243,-360.0,0.00015188,2]
[394452870,1763589033251,-2251.83879319,0.00015206,2]
[394452871,1763589033260,-2765.50418536,0.00015324,2]
[394452872,1763589033270,-536.24210327,0.00015367,2]
[394452873,1763589033280,-209.98,0.00015375,2]
[394452874,1763589033290,-2033.38206298,0.00015497,2]
[394452875,1763589033299,-679.343176,0.000155,3]
[394452876,1763589033308,-151.0,0.000155,2]
[394452877,1763589033319,-1137.0,0.00015564,2]
[394452878,1763589033328,-168.0,0.00015651,2]
[394452879,1763589033338,-168.0,0.00015735,2]
[394452880,1763589033347,-460.0,0.00015736,2]
[394452881,1763589033357,-168.0,0.00015741,2]
[394452882,1763589033366,-150.0863298,0.00015815,2]
[394452883,1763589033376,-953.3192947,0.00015888,2]
[394452884,1763589033386,-3177.15947341,0.00015888,2]
[394452885,1763589033396,-168.0,0.00015933,2]
[394452886,1763589033544,-168.0,0.00015956,2]
[394452887,1763589033554,-168.0,0.00016,2]
[394452888,1763589033563,-151.0,0.0001605,2]
[394452889,1763589033574,-181.968573,0.0001605,2]
[394452890,1763589033583,-181.968573,0.0001605,2]
[394452891,1763589033592,-181.968573,0.0001605,2]
[394452892,1763589033601,-181.968573,0.0001605,2]
[394452893,1763589033610,-151.0,0.0001605,2]
[394452894,1763589033619,-100000.0,0.0001605,2]
[394452895,1763589033629,-939.79843247,0.00016055,7]
[394452896,1763589033638,-295.0,0.00016099,2]
[394452897,1763589033648,-168.0,0.00016194,2]
[394452898,1763589033657,-1000.0,0.00016226,2]
[394452899,1763589033666,-244.0,0.00016226,2]
[394452900,1763589033676,-168.0,0.00016247,2]
[394452901,1763589033685,-560.0,0.00016283,2]
[394452902,1763589033694,-989.0,0.00016309,2]
[394452903,1763589033703,-630.0,0.00016309,2]
[394452904,1763589033712,-2151.0,0.00016309,2]
[394452905,1763589033721,-458.865,0.00016309,2]
[394452906,1763589033731,-414.0,0.00016309,2]
[394452907,1763589033740,-168.0,0.00016313,2]
[394452908,1763589033750,-168.0,0.00016394,2]
[394452909,1763589033759,-181.22,0.0001644,2]
[394452910,1763589033769,-168.0,0.00016572,2]
[394452911,1763589033779,-10013.40308436,0.00016695,2]
[394452912,1763589033788,-394.7342799,0.00016712,2]
[394452913,1763589033797,-168.0,0.00016754,2]
[394452914,1763589033807,-295.0,0.00016769,2]
[394452915,1763589033816,-150.0863298,0.00016804,2]
[394452916,1763589033827,-168.0,0.00016813,2]
[394452917,1763589033836,-660.0,0.00016831,2]
[394452918,1763589033845,-151.0,0.00016933,2]
[394452919,1763589033855,-500.0,0.0001697,2]
[394452920,1763589033864,-160.0,0.00016988,2]
[394452921,1763589033874,-160.0,0.00016988,2]
[394452922,1763589033883,-500.0,0.00017035,2]
[394452923,1763589033893,-500.0,0.00017035,2]
[394452924,1763589033902,-500.0,0.00017067,2]
[394452925,1763589033911,-509.93100257,0.00017067,2]
[394452926,1763589033921,-500.0,0.00017067,2]
[394452927,1763589033930,-500.0,0.00017115,2]
[394452928,1763589033940,-500.0,0.00017115,2]
[394452929,1763589033950,-500.0,0.00017115,2]
[394452930,1763589033959,-500.0,0.00017115,2]
[394452931,1763589033968,-500.0,0.00017157,2]
[394452932,1763589033977,-500.0,0.00017157,2]
[394452933,1763589033986,-503.28369216,0.00017157,2]
[394452934,1763589033995,-500.0,0.00017157,2]
[394452935,1763589034005,-500.0,0.00017157,2]
[394452936,1763589034014,-500.0,0.00017157,2]
[394452937,1763589034024,-500.0,0.00017157,2]
[394452938,1763589034033,-577.1322303,0.00017342,2]
[394452939,1763589034042,-2302.1255231,0.00017373,2]
[394452940,1763589034052,-760.0,0.00017379,2]
[394452941,1763589034061,-672.25833558,0.00017454,7]
[394452942,1763589034072,-2112.43192659,0.00017454,7]
[394452943,1763589034081,-150.0,0.00017468,2]
[394452944,1763589034090,-150.0,0.00017468,2]
[394452945,1763589034099,-150.0,0.00017468,2]
[394452946,1763589034110,-1000.0,0.00017518,2]
[394452947,1763589034120,-151.0,0.0001753,2]
[394452948,1763589034130,-2546.0,0.00017565,2]
[394452949,1763589034139,-301.0,0.00017572,2]
[394452950,1763589034148,-414.92008594,0.00017583,2]
[394452951,1763589034158,-1000.0,0.00017583,2]
[394452952,1763589034167,-181.968573,0.00017583,2]
[394452953,1763589034176,-181.968573,0.00017583,2]
[394452954,1763589034185,-181.968573,0.00017583,2]
[394452955,1763589034194,-181.968573,0.00017583,2]
[394452956,1763589034203,-258.07948271,0.00017615,2]
[394452957,1763589034212,-1000.0,0.00017615,2]
[394452958,1763589034223,-151.0,0.00017615,2]
[394452959,1763589034232,-151.0,0.00017615,2]
[394452960,1763589034241,-151.0,0.00017615,2]
[394452961,1763589034251,-151.0,0.00017615,2]
[394452962,1763589034263,-151.0,0.00017615,2]
[394452963,1763589034273,-151.0,0.00017615,2]
[394452964,1763589034283,-151.0,0.00017615,2]
[394452965,1763589034293,-151.0,0.00017615,2]
[394452966,1763589034303,-151.0,0.00017615,2]
[394452967,1763589034312,-500.0,0.00017639,2]
[394452968,1763589034322,-500.0,0.00017639,2]
[394452969,1763589034331,-500.0,0.00017639,2]
[394452970,1763589034340,-500.0,0.00017639,2]
[394452971,1763589034349,-306.10984849,0.00017639,2]
[394452972,1763589034358,-506.80097054,0.00017663,2]
[394452973,1763589034368,-508.37402696,0.00017663,2]
[394452974,1763589034377,-1000.0,0.00017663,2]
[394452975,1763589034387,-1000.0,0.00017663,2]
[394452976,1763589034396,-501.70908456,0.00017705,2]
[394452977,1763589034405,-1000.0,0.00017705,2]
[394452978,1763589034414,-1000.0,0.00017705,2]
[394452979,1763589034423,-1000.0,0.00017705,2]
[394452980,1763589034433,-499.58412256,0.00017705,2]
[394452981,1763589034442,-1000.0,0.00017705,2]
[394452982,1763589034451,-379.0,0.00017716,2]
[394452983,1763589034464,-150.0863298,0.00017792,2]
[394452984,1763589034474,-1000.0,0.00017849,2]
[394452985,1763589034483,-492.0,0.00017849,2]
[394452986,1763589034493,-679.343176,0.00017896,2]
[394452987,1763589034503,-405.82651331,0.00017914,2]
[394452988,1763589034513,-860.0,0.00017927,2]
[394452989,1763589034522,-1500.0,0.00018065,2]
[394452990,1763589034533,-2546.0,0.00018069,2]
[394452991,1763589034545,-151.821289,0.00018117,2]
[394452992,1763589034554,-151.0,0.00018117,2]
[394452993,1763589034564,-2546.0,0.00018117,2]
[394452994,1763589034575,-1500.0,0.00018131,2]
[394452995,1763589034583,-1556.68968255,0.00018163,2]
[394452996,1763589034593,-1017.13190715,0.00018187,2]
[394452997,1763589034602,-1000.0,0.00018187,2]
[394452998,1763589034611,-1000.0,0.00018187,2]
[394452999,1763589034620,-2546.0,0.00018188,2]
[394453000,1763589034629,-500.0,0.00018211,2]
[394453001,1763589034638,-1500.0,0.00018211,2]
[394453002,1763589034647,-2546.0,0.00018251,2]
[394453003,1763589034656,-515.17008264,0.00018253,2]
[394453004,1763589034665,-1500.0,0.00018253,2]
[394453005,1763589034674,-1426.70166481,0.00018253,2]
[394453006,1763589034683,-151.0,0.00018324,2]
[394453007,1763589034692,-2546.0,0.00018324,2]
[394453008,1763589034701,-2546.0,0.00018361,2]
[394453009,1763589034710,-1405.08481466,0.00018451,2]
[394453010,1763589034719,-960.0,0.00018475,2]
[394453011,1763589034728,-1417.60038374,0.00018613,2]
[394453012,1763589034737,-2546.0,0.00018638,2]
[394453013,1763589034747,-2618.00490482,0.00018638,2]
[394453014,1763589034755,-679.343176,0.00018675,3]
[394453015,1763589034764,-2000.0,0.00018679,2]
[394453016,1763589034773,-440.87205287,0.00018712,2]
[394453017,1763589034782,-1500.0,0.00018735,2]
[394453018,1763589034791,-500.0,0.00018735,2]
[394453019,1763589034800,-2043.84196819,0.00018759,2]
[394453020,1763589034809,-150.0863298,0.00018781,2]
[394453021,1763589034818,-508.14239871,0.00018801,2]
[394453022,1763589034831,-453.95531257,0.000189,2]
[394453023,1763589034840,-149388.05452594,0.0001901,2]
[394453024,1763589034848,-151.0,0.0001901,2]
[394453025,1763589034858,-151.0,0.0001901,2]
[394453026,1763589034866,-151.0,0.0001901,2]
[394453027,1763589034876,-181.968573,0.0001901,2]
[394453028,1763589034885,-181.968573,0.0001901,2]
[394453029,1763589034894,-181.968573,0.0001901,2]
[394453030,1763589034903,-181.968573,0.0001901,2]
[394453031,1763589034912,-151.0,0.0001901,2]
[394453032,1763589034921,-151.0,0.0001901,2]
[394453033,1763589034930,-151.0,0.0001901,2]
[394453034,1763589034939,-151.0,0.0001901,2]
[394453035,1763589034949,-151.0,0.0001901,2]
[394453036,1763589034958,-151.0,0.0001901,2]
[394453037,1763589034967,-151.0,0.0001901,2]
[394453038,1763589034977,-151.0,0.0001901,2]
[394453039,1763589034986,-151.0,0.0001901,2]
[394453040,1763589034995,-203.522816,0.0001901,2]
[394453041,1763589035004,-1060.0,0.00019023,2]
[394453042,1763589035014,-2546.0,0.00019107,2]
[394453043,1763589035023,-309.526982,0.00019178,2]
[394453044,1763589035033,-309.526982,0.00019178,2]
[394453045,1763589035042,-309.526982,0.00019178,2]
[394453046,1763589035051,-309.526982,0.00019178,2]
[394453047,1763589035060,-309.526982,0.00019178,2]
[394453048,1763589035069,-309.526982,0.00019178,2]
[394453049,1763589035079,-309.526982,0.00019178,2]
[394453050,1763589035088,-309.526982,0.00019178,2]
[394453051,1763589035098,-2546.0,0.0001919,2]
[394453052,1763589035107,-2500.0,0.00019227,2]
[394453053,1763589035116,-2000.0,0.00019283,2]
[394453054,1763589035125,-989.0,0.00019309,2]
[394453055,1763589035135,-630.0,0.00019309,2]
[394453056,1763589035145,-2151.0,0.00019309,2]
[394453057,1763589035155,-414.0,0.00019309,2]
[394453058,1763589035165,-414.0,0.00019309,2]
[394453059,1763589035174,-577.1322303,0.0001957,2]
[394453060,1763589035183,-1160.0,0.00019571,2]
[394453061,1763589035192,-2302.1255231,0.00019617,2]
[394453062,1763589035201,-1000.0,0.00019634,7]
[394453063,1763589035211,-791.0,0.00019634,7]
[394453064,1763589035219,-633.13153348,0.00019719,2]
[394453065,1763589035228,-504.14184297,0.00019719,2]
[394453066,1763589035237,-506.76459582,0.00019719,2]
[394453067,1763589035246,-150.0863298,0.00019769,2]
[394453068,1763589035255,-1041.08475044,0.00019775,2]
[394453069,1763589035264,-2500.0,0.00019831,2]
[394453070,1763589035273,-10600.0,0.000199,2]
[394453071,1763589035283,-624.0,0.0002,2]
[394453072,1763589035293,-2979.0,0.0002,2]
[394453073,1763589035303,-162.38215441,0.0002,2]
[394453074,1763589035312,-2000.0,0.0002,7]
[394453075,1763589035323,-1260.0,0.00020119,2]
[394453076,1763589035334,-1213.332876,0.00020187,2]
[394453077,1763589035343,-3000.0,0.00020379,2]
[394453078,1763589035351,-150.0,0.00020468,2]
[394453079,1763589035360,-151.0,0.00020548,7]
[394453080,1763589035369,-151.0,0.00020548,7]
[394453081,1763589035379,-151.0,0.00020548,7]
[394453082,1763589035387,-151.0,0.00020548,7]
[394453083,1763589035396,-151.0,0.00020548,7]
[394453084,1763589035405,-151.0,0.00020548,7]
[394453085,1763589035414,-178.620576,0.00020548,7]
[394453086,1763589035423,-1360.0,0.00020667,2]
[394453087,1763589035433,-487.00982585,0.00020712,2]
[394453088,1763589035442,-150.0863298,0.00020757,2]
[394453089,1763589035451,-3500.0,0.00020927,2]
[394453090,1763589035461,-1460.0,0.00021215,2]
[394453091,1763589035470,-679.343176,0.0002127,2]
[394453092,1763589035480,-4399.53957797,0.00021289,2]
[394453093,1763589035489,-4000.0,0.00021475,2]
[394453094,1763589035499,-1000.0,0.00021597,7]
[394453095,1763589035508,-1000.0,0.00021597,7]
[394453096,1763589035517,-150.0863298,0.00021746,2]
[394453097,1763589035525,-1560.0,0.00021763,2]
[394453098,1763589035536,-679.343176,0.00021851,3]
[394453099,1763589035545,-11734.1692317,0.000219,2]
[394453100,1763589035554,-945.62,0.00021917,2]
[394453101,1763589035563,-316.390269,0.00021918,2]
[394453102,1763589035573,-316.390269,0.00021918,2]
[394453103,1763589035583,-316.390269,0.00021918,2]
[394453104,1763589035592,-316.390269,0.00021918,2]
[394453105,1763589035602,-316.390269,0.00021918,2]
[394453106,1763589035611,-316.390269,0.00021918,2]
[394453107,1763589035620,-316.390269,0.00021918,2]
[394453108,1763589035630,-316.390269,0.00021918,2]
[394453109,1763589035640,-151.0,0.00021918,7]
[394453110,1763589035649,-151.0,0.00021918,7]
[394453111,1763589035659,-151.0,0.00021918,7]
[394453112,1763589035668,-151.0,0.00021918,7]
[394453113,1763589035677,-151.0,0.00021918,7]
[394453114,1763589035686,-151.0,0.00021918,7]
[394453115,1763589035695,-500.0,0.00021973,2]
[394453116,1763589035704,-300.0,0.00021973,2]
[394453117,1763589035713,-500.0,0.00021973,2]
[394453118,1763589035723,-500.0,0.00021973,2]
[394453119,1763589035732,-500.0,0.00021973,2]
[394453120,1763589035741,-500.0,0.00021973,2]
[394453121,1763589035750,-294137.01,0.00022,2]
[394453122,1763589035759,-1867.93,0.00022,7]
[394453123,1763589035768,-639.29,0.00022,14]
[394453124,1763589035777,-161.343998,0.00022,7]
[394453125,1763589035786,-151.0,0.00022,7]
[394453126,1763589035795,-181.968573,0.00022,7]
[394453127,1763589035805,-181.968573,0.00022,7]
[394453128,1763589035814,-181.968573,0.00022,7]
[394453129,1763589035823,-181.968573,0.00022,7]
[394453130,1763589035832,-151.0,0.00022,7]
[394453131,1763589035841,-151.0,0.00022,7]
[394453132,1763589035851,-151.0,0.00022,7]
[394453133,1763589035860,-151.0,0.00022,7]
[394453134,1763589035869,-211.958336,0.00022,7]
[394453135,1763589035878,-316.390269,0.00022,2]
[394453136,1763589035887,-316.390269,0.00022,2]
[394453137,1763589035897,-316.390269,0.00022,2]
[394453138,1763589035906,-316.390269,0.00022,2]
[394453139,1763589035915,-151.0,0.00022,7]
[394453140,1763589035924,-151.0,0.00022,7]
[394453141,1763589035934,-151.0,0.00022,7]
[394453142,1763589035943,-151.0,0.00022,7]
[394453143,1763589035953,-151.0,0.00022,7]
[394453144,1763589035963,-309.526982,0.00022,7]
[394453145,1763589035972,-309.526982,0.00022,7]
[394453146,1763589035981,-309.526982,0.00022,7]
[394453147,1763589035990,-309.526982,0.00022,7]
[394453148,1763589036000,-4500.0,0.00022022,2]
[394453149,1763589036009,-989.0,0.00022309,2]
[394453150,1763589036018,-630.0,0.00022309,2]
[394453151,1763589036027,-2151.0,0.00022309,2]
[394453152,1763589036038,-414.0,0.00022309,2]
[394453153,1763589036047,-414.0,0.00022309,2]
[394453154,1763589036056,-1660.0,0.00022311,2]
[394453155,1763589036065,-169.375,0.00022416,2]
[394453156,1763589036075,-1001.67009495,0.00022521,2]
[394453157,1763589036084,-1000.0,0.00022521,2]
[394453158,1763589036093,-212.03063547,0.00022521,2]
[394453159,1763589036102,-1000.0,0.00022521,2]
[394453160,1763589036111,-1000.0,0.00022521,2]
[394453161,1763589036120,-5000.0,0.0002257,2]
[394453162,1763589036129,-533.14759882,0.00022712,2]
[394453163,1763589036138,-150.0863298,0.00022734,2]
[394453164,1763589036147,-300.0,0.00022795,2]
[394453165,1763589036156,-10013.40308436,0.00022823,2]
[394453166,1763589036165,-1760.0,0.00022859,2]
[394453167,1763589036174,-945.62,0.00023013,2]
[394453168,1763589036182,-232.268042,0.00023014,2]
[394453169,1763589036191,-515.07950018,0.00023068,2]
[394453170,1763589036200,-1500.0,0.00023068,2]
[394453171,1763589036209,-636.10601496,0.00023068,2]
[394453172,1763589036218,-5500.0,0.00023118,2]
[394453173,1763589036227,-1672.60885105,0.00023407,2]
[394453174,1763589036236,-2000.0,0.00023616,2]
[394453175,1763589036245,-6000.0,0.00023666,2]
[394453176,1763589036253,-150.08632981,0.00023723,2]
[394453177,1763589036262,-4201.14723229,0.00023741,2]
[394453178,1763589036271,-1000.0,0.00023757,7]
[394453179,1763589036280,-1000.0,0.00023757,7]
[394453180,1763589036289,-579.0,0.00023757,7]
[394453181,1763589036298,-1039.85983353,0.00024,5]
[394453182,1763589036307,-1405.08481466,0.00024006,2]
[394453183,1763589036315,-945.62,0.00024109,2]
[394453184,1763589036326,-2500.0,0.00024164,2]
[394453185,1763589036334,-2000.0,0.00024167,7]
[394453186,1763589036343,-859.69996397,0.00024214,2]
[394453187,1763589036352,-156.6128,0.00024645,2]
[394453188,1763589036360,-679.343176,0.00024645,2]
[394453189,1763589036370,-181.690096,0.00024645,2]
[394453190,1763589036379,-511.91515226,0.0002465,2]
[394453191,1763589036388,-380.0,0.00024658,2]
[394453192,1763589036397,-151.0,0.00024658,7]
[394453193,1763589036406,-151.0,0.00024658,7]
[394453194,1763589036415,-151.0,0.00024658,7]
[394453195,1763589036425,-151.0,0.00024658,7]
[394453196,1763589036434,-151.0,0.00024658,7]
[394453197,1763589036443,-151.0,0.00024658,7]
[394453198,1763589036452,-151.0,0.00024658,7]
[394453199,1763589036464,-151.0,0.00024658,7]
[394453200,1763589036473,-151.0,0.00024658,7]
[394453201,1763589036482,-151.0,0.00024658,7]
[394453202,1763589036492,-151.0,0.00024658,7]
[394453203,1763589036502,-151.0,0.00024658,7]
[394453204,1763589036511,-151.0,0.00024658,7]
[394453205,1763589036520,-151.0,0.00024658,7]
[394453206,1763589036530,-151.0,0.00024658,7]
[394453207,1763589036540,-151.0,0.00024658,7]
[394453208,1763589036549,-168.652796,0.00024658,7]
[394453209,1763589036558,-151.0,0.00024658,7]
[394453210,1763589036567,-151.0,0.00024658,7]
[394453211,1763589036576,-151.0,0.00024658,7]
[394453212,1763589036585,-235.532092,0.00024658,7]
[394453213,1763589036593,-151.0,0.00024658,7]
[394453214,1763589036602,-151.0,0.00024658,7]
[394453215,1763589036611,-151.0,0.00024658,7]
[394453216,1763589036620,-151.0,0.00024658,7]
[394453217,1763589036628,-151.0,0.00024658,7]
[394453218,1763589036637,-151.0,0.00024658,7]
[394453219,1763589036646,-151.0,0.00024658,7]
[394453220,1763589036772,-151.0,0.00024658,7]
[394453221,1763589036782,-151.0,0.00024658,7]
[394453222,1763589036791,-151.0,0.00024658,7]
[394453223,1763589036800,-151.0,0.00024658,7]
[394453224,1763589036809,-151.0,0.00024658,7]
[394453225,1763589036818,-197.698694,0.00024658,7]
[394453226,1763589036828,-197.698694,0.00024658,7]
[394453227,1763589036837,-197.698694,0.00024658,7]
[394453228,1763589036846,-197.698694,0.00024658,7]
[394453229,1763589036855,-197.698694,0.00024658,7]
[394453230,1763589036864,-197.698694,0.00024658,7]
[394453231,1763589036873,-151.0,0.00024658,7]
[394453232,1763589036883,-151.0,0.00024658,7]
[394453233,1763589036892,-151.0,0.00024658,7]
[394453234,1763589036901,-151.0,0.00024658,7]
[394453235,1763589036910,-151.0,0.00024658,7]
[394453236,1763589036920,-151.0,0.00024658,7]
[394453237,1763589036930,-258.675181,0.00024658,7]
[394453238,1763589036941,-151.0,0.00024658,7]
[394453239,1763589036951,-151.0,0.00024658,7]
[394453240,1763589036960,-151.0,0.00024658,7]
[394453241,1763589036969,-151.0,0.00024658,7]
[394453242,1763589036979,-151.0,0.00024658,7]
[394453243,1763589036989,-151.0,0.00024658,7]
[394453244,1763589036999,-151.0,0.00024658,7]
[394453245,1763589037009,-151.0,0.00024658,7]
[394453246,1763589037017,-151.0,0.00024658,7]
[394453247,1763589037027,-261.672354,0.00024658,7]
[394453248,1763589037036,-151.0,0.00024658,7]
[394453249,1763589037045,-151.0,0.00024658,7]
[394453250,1763589037056,-151.0,0.00024658,7]
[394453251,1763589037066,-151.0,0.00024658,7]
[394453252,1763589037076,-151.0,0.00024658,7]
[394453253,1763589037085,-155.354902,0.00024658,7]
[394453254,1763589037094,-155.533912,0.00024658,7]
[394453255,1763589037103,-151.0,0.00024658,7]
[394453256,1763589037112,-157.369668,0.00024658,7]
[394453257,1763589037122,-151.0,0.00024658,7]
[394453258,1763589037131,-151.0,0.00024658,7]
[394453259,1763589037139,-151.0,0.00024658,7]
[394453260,1763589037149,-151.0,0.00024658,7]
[394453261,1763589037158,-151.0,0.00024658,7]
[394453262,1763589037167,-151.0,0.00024658,7]
[394453263,1763589037176,-151.0,0.00024658,7]
[394453264,1763589037185,-171.918134,0.00024658,7]
[394453265,1763589037194,-151.0,0.00024658,7]
[394453266,1763589037204,-151.0,0.00024658,7]
[394453267,1763589037213,-151.0,0.00024658,7]
[394453268,1763589037222,-151.0,0.00024658,7]
[394453269,1763589037231,-151.0,0.00024658,7]
[394453270,1763589037240,-151.0,0.00024658,7]
[394453271,1763589037248,-151.0,0.00024658,7]
[394453272,1763589037257,-151.0,0.00024658,7]
[394453273,1763589037267,-151.0,0.00024658,7]
[394453274,1763589037275,-151.0,0.00024658,7]
[394453275,1763589037284,-151.0,0.00024658,7]
[394453276,1763589037293,-151.0,0.00024658,7]
[394453277,1763589037303,-151.0,0.00024658,7]
[394453278,1763589037311,-294.039304,0.00024658,7]
[394453279,1763589037321,-151.0,0.00024658,7]
[394453280,1763589037331,-151.0,0.00024658,7]
[394453281,1763589037340,-151.0,0.00024658,7]
[394453282,1763589037349,-151.0,0.00024658,7]
[394453283,1763589037359,-151.0,0.00024658,7]
[394453284,1763589037368,-151.0,0.00024658,7]
[394453285,1763589037377,-151.0,0.00024658,7]
[394453286,1763589037386,-165.32292,0.00024658,7]
[394453287,1763589037395,-151.0,0.00024658,7]
[394453288,1763589037404,-151.0,0.00024658,7]
[394453289,1763589037413,-195.382477,0.00024658,7]
[394453290,1763589037421,-151.0,0.00024658,7]
[394453291,1763589037430,-151.0,0.00024658,7]
[394453292,1763589037439,-151.0,0.00024658,7]
[394453293,1763589037448,-151.0,0.00024658,7]
[394453294,1763589037460,-151.0,0.00024658,7]
[394453295,1763589037470,-151.0,0.00024658,7]
[394453296,1763589037479,-151.0,0.00024658,7]
[394453297,1763589037488,-151.0,0.00024658,7]
[394453300,1763589037497,-151.0,0.00024658,7]
[394453303,1763589037506,-151.0,0.00024658,7]
[394453304,1763589037516,-151.0,0.00024658,7]
[394453305,1763589037526,-151.0,0.00024658,7]
[394453306,1763589037538,-151.0,0.00024658,7]
[394453307,1763589037548,-151.0,0.00024658,7]
[394453309,1763589037557,-151.0,0.00024658,7]
[394453311,1763589037567,-151.0,0.00024658,7]
[394453313,1763589037577,-151.0,0.00024658,7]
[394453315,1763589037586,-151.0,0.00024658,7]
[394453316,1763589037595,-151.0,0.00024658,7]
[394453317,1763589037604,-151.0,0.00024658,7]
[394453318,1763589037612,-151.0,0.00024658,7]
[394453320,1763589037621,-151.0,0.00024658,7]
[394453322,1763589037630,-151.0,0.00024658,7]
[394453324,1763589037639,-151.0,0.00024658,7]
[394453326,1763589037648,-151.0,0.00024658,7]
[394453328,1763589037657,-151.0,0.00024658,7]
[394453330,1763589037666,-151.0,0.00024658,7]
[394453332,1763589037676,-151.0,0.00024658,7]
[394453334,1763589037685,-151.0,0.00024658,7]
[394453336,1763589037693,-273.267904,0.00024658,7]
[394453338,1763589037702,-151.0,0.00024658,7]
[394453340,1763589037711,-151.0,0.00024658,7]
[394453342,1763589037719,-151.0,0.00024658,7]
[394453344,1763589037728,-151.0,0.00024658,7]
[394453346,1763589037737,-151.0,0.00024658,7]
[394453347,1763589037746,-151.0,0.00024658,7]
[394453349,1763589037755,-151.0,0.00024658,7]
[394453352,1763589037764,-158.109944,0.00024658,7]
[394453353,1763589037773,-151.0,0.00024658,7]
[394453355,1763589037782,-151.0,0.00024658,7]
[394453357,1763589037791,-151.0,0.00024658,7]
[394453359,1763589037800,-151.0,0.00024658,7]
[394453361,1763589037809,-151.0,0.00024658,7]
[394453363,1763589037818,-169.992689,0.00024658,7]
[394453365,1763589037829,-151.0,0.00024658,7]
[394453367,1763589037838,-151.0,0.00024658,7]
[394453369,1763589037847,-151.0,0.00024658,7]
[394453371,1763589037857,-151.0,0.00024658,7]
[394453373,1763589037865,-500.0,0.00024658,7]
[394453375,1763589037875,-500.0,0.00024658,7]
[394453377,1763589037884,-500.0,0.00024658,7]
[394453379,1763589037893,-500.0,0.00024658,7]
[394453381,1763589037902,-500.0,0.00024658,7]
[394453383,1763589037912,-500.0,0.00024658,7]
[394453385,1763589037921,-500.0,0.00024658,7]
[394453388,1763589037930,-500.0,0.00024658,7]
[394453389,1763589037939,-500.0,0.00024658,7]
[394453391,1763589037948,-500.0,0.00024658,7]
[394453393,1763589037957,-500.0,0.00024658,7]
[394453395,1763589037967,-500.0,0.00024658,7]
[394453397,1763589037976,-151.0,0.00024658,7]
[394453399,1763589037985,-151.0,0.00024658,7]
[394453401,1763589037994,-151.0,0.00024658,7]
[394453403,1763589038003,-151.0,0.00024658,7]
[394453405,1763589038012,-151.0,0.00024658,7]
[394453407,1763589038021,-226.810405,0.00024658,7]
[394453409,1763589038031,-151.0,0.00024658,7]
[394453411,1763589038040,-151.0,0.00024658,7]
[394453413,1763589038050,-173.12739,0.00024658,7]
[394453415,1763589038059,-151.0,0.00024658,7]
[394453417,1763589038069,-151.0,0.00024658,7]
[394453419,1763589038080,-151.0,0.00024658,7]
[394453421,1763589038090,-151.0,0.00024658,7]
[394453423,1763589038100,-151.0,0.00024658,7]
[394453425,1763589038109,-151.0,0.00024658,7]
[394453427,1763589038118,-151.0,0.00024658,7]
[394453429,1763589038128,-151.0,0.00024658,7]
[394453431,1763589038138,-151.0,0.00024658,7]